bitfinex-derivatives/quotes_ETHF0:USTF0_20241104
["timestamp","ask_amount","ask_price","bid_price","bid_amount"]
[1730734224133,3.2078,2448.1,2447.8,0.4494]
[1730734224631,3.2078,2448.1,2448.0,0.4087]
[1730734224829,0.9114,2448.3,2448.0,0.56867891]
[1730734225131,0.40869,2448.1,2448.0,0.4087]
[1730734225334,0.40869,2448.1,2448.0,0.97737934]
[1730734225727,0.40869,2448.1,2448.0,0.97738016]
[1730734226231,0.40869,2448.1,2448.0,0.56868016]
[1730734226425,0.40869,2448.1,2447.8,0.4494]
[1730734226426,3.2078,2448.1,2447.8,0.4494]
[1730734226631,3.18965183,2447.9,2447.6,1.91393597]
[1730734226941,3.18965183,2447.9,2447.6,1.50517597]
[1730734226942,0.40875,2447.7,2447.6,1.50517597]
[1730734227138,3.59840183,2447.7,2447.6,1.47887444]
[1730734227427,7.68400183,2447.7,2447.6,0.56879786]
[1730734227834,0.4088,2447.4,2447.3,1.06977597]
[1730734228133,0.4088,2447.4,2447.3,2.9576795]
[1730734228434,0.4088,2447.4,2447.3,2.5488595]
[1730734228832,0.4088,2447.4,2447.3,1.47908353]
[1730734229034,0.4088,2447.4,2447.3,1.88790353]
[1730734229426,0.4088,2447.4,2447.3,2.9576795]
[1730734229624,0.4088,2447.4,2447.3,1.47908353]
[1730734229826,0.4088,2447.4,2447.3,1.88790353]
[1730734230331,1.02194,2447.6,2447.5,0.40877]
[1730734230332,0.40879,2447.6,2447.5,0.40877]
[1730734230532,5.83732061,2448.2,2447.5,0.56887828]
[1730734230733,4.22947,2448.3,2447.6,3.39579543]
[1730734230734,0.459,2448.1,2447.6,3.39579543]
[1730734230930,0.40873,2447.9,2447.8,0.40872]
[1730734231233,0.40873,2447.9,2447.8,0.97759828]
[1730734231435,0.40873,2447.9,2447.8,1.88246119]
[1730734231833,3.2078,2448.0,2447.9,0.40872]
[1730734231834,3.61651,2448.0,2447.9,0.40872]
[1730734232028,3.2078,2448.0,2447.9,0.97759828]
[1730734233339,3.2078,2448.0,2447.9,1.88259715]
[1730734233633,3.2078,2448.0,2447.9,0.56887828]
[1730734233634,3.6165,2448.0,2447.9,0.56887828]
[1730734233832,7.7013,2448.0,2447.9,0.56887828]
[1730734234040,0.40877,2447.6,2447.5,1.47855597]
[1730734234342,3.18965183,2447.7,2447.5,1.47078141]
[1730734234537,0.84095,2447.8,2447.7,0.40875]
[1730734234851,0.84095,2447.8,2447.7,0.97443516]
[1730734234852,0.84094,2447.8,2447.7,0.97443516]
[1730734235440,0.84094,2447.8,2447.7,0.56568516]
[1730734235944,4.92654,2447.8,2447.7,0.56568516]
[1730734236240,4.92654,2447.8,2447.3,0.9057]
[1730734236241,0.4088,2447.4,2447.3,0.9057]
[1730734236434,0.4088,2447.4,2447.3,2.37639188]
[1730734236840,0.4088,2447.4,2447.3,3.714127]
[1730734237042,0.4088,2447.4,2447.3,3.44678626]
[1730734237232,0.4088,2447.4,2447.3,2.38491438]
[1730734237432,1.46209,2447.7,2447.3,2.38491438]
[1730734237433,3.62985183,2447.7,2447.3,4.7842366]
[1730734237737,0.40878,2447.6,2447.5,0.40878]
[1730734237930,0.40878,2447.6,2447.5,1.87934513]
[1730734238328,4.05676,2447.7,2447.6,0.40877]
[1730734238538,4.05676,2447.7,2447.6,0.56560197]
[1730734239028,4.05676,2447.7,2447.5,0.40877]
[1730734239230,4.05676,2447.7,2447.2,3.16286876]
[1730734239231,7.24641183,2447.7,2447.2,1.07039438]
[1730734239436,0.40892,2446.7,2446.5,1.07039438]
[1730734239630,0.40895,2446.5,2446.4,1.07039438]
[1730734239832,0.40897,2446.4,2446.3,1.07039438]
[1730734240034,0.40899,2446.3,2446.2,1.50039438]
[1730734240233,0.40899,2446.3,2446.1,2.05639157]
[1730734240234,0.409,2446.2,2446.1,0.4508]
[1730734240535,0.409,2446.2,2445.9,1.50039438]
[1730734240536,0.40904,2446.0,2445.9,1.50039438]
[1730734240736,0.40905,2445.9,2445.7,1.07039438]
[1730734240935,3.18965183,2446.0,2445.6,5.22249157]
[1730734240936,0.40908,2445.8,2445.6,4.27819438]
[1730734241136,0.40908,2445.8,2445.6,3.6169]
[1730734241137,3.18965183,2445.7,2445.6,3.6169]
[1730734241339,3.18965183,2445.7,2445.6,7.7057]
[1730734243244,3.59873183,2445.7,2445.6,7.7057]
[1730734243444,3.18965183,2445.7,2445.6,7.7057]
[1730734243641,0.40907,2445.8,2445.6,7.2966]
[1730734243939,3.18965183,2445.9,2445.8,0.40908]
[1730734245045,3.18965183,2445.9,2445.6,3.2078]
[1730734245248,3.59872183,2445.9,2445.7,0.40908]
[1730734245443,0.40909,2445.7,2445.6,3.2078]
[1730734245652,0.40909,2445.7,2445.3,0.43]
[1730734245653,0.40914,2445.4,2445.3,0.43]
[1730734245943,0.40914,2445.4,2444.9,1.02305]
[1730734245944,0.40918,2445.2,2444.6,1.47967438]
[1730734246147,0.40925,2444.8,2444.5,1.31149]
[1730734246450,3.18965183,2444.9,2444.5,0.9022]
[1730734246749,3.18965183,2444.9,2444.7,0.40925]
[1730734246750,44.39888183,2444.9,2444.7,0.40925]
[1730734247141,0.40925,2444.8,2444.6,0.40927]
[1730734247537,44.39888183,2444.9,2444.7,0.40925]
[1730734247742,43.98965183,2444.9,2444.4,0.18934181]
[1730734247945,0.40929,2444.5,2444.4,3.2078]
[1730734248147,3.18965183,2444.6,2444.4,3.2078]
[1730734248350,0.40929,2444.5,2444.4,3.2078]
[1730734248545,3.18965183,2444.6,2444.4,0.4093]
[1730734248745,3.18965183,2444.6,2444.5,0.40929]
[1730734250251,3.18965183,2444.8,2444.7,0.40925]
[1730734250547,3.18965183,2444.8,2444.2,3.39512666]
[1730734250849,3.59890183,2444.8,2444.6,0.40928]
[1730734251053,3.59890183,2444.8,2444.2,3.2078]
[1730734251054,6.39745183,2444.8,2444.2,3.2078]
[1730734251243,6.39745183,2444.8,2443.8,1.47999438]
[1730734251244,6.39745183,2444.3,2443.6,3.2078]
[1730734251441,3.18965183,2443.8,2443.7,0.40942]
[1730734251649,0.4094,2443.9,2443.7,0.40942]
[1730734251845,3.18965183,2443.8,2443.7,0.40942]
[1730734253351,4.34084883,2444.1,2443.5,3.2078]
[1730734253752,3.93147883,2444.1,2443.9,0.40938]
[1730734254047,3.93147883,2444.1,2443.5,3.2078]
[1730734254353,3.93147883,2444.1,2444.0,0.40938]
[1730734256052,3.2078,2444.2,2444.1,0.40936]
[1730734256353,0.4513,2444.5,2444.3,0.40931]
[1730734256354,3.6171,2444.5,2444.3,0.40931]
[1730734256648,3.6171,2444.5,2443.9,1.02346]
[1730734256649,0.4093,2444.5,2444.4,0.40931]
[1730734256854,0.40929,2444.5,2444.4,0.40931]
[1730734257047,0.40929,2444.5,2444.3,0.40931]
[1730734257366,4.77256883,2444.6,2444.1,3.2078]
[1730734257552,4.77256883,2444.6,2444.4,0.40931]
[1730734258251,3.2078,2444.5,2444.0,0.8583]
[1730734258753,3.6171,2444.5,2444.0,0.8583]
[1730734258953,3.6171,2444.5,2444.3,0.40933]
[1730734260052,3.2078,2444.5,2444.4,0.40931]
[1730734260253,3.2078,2444.5,2444.0,0.8583]
[1730734260453,3.2078,2444.5,2444.3,0.40932]
[1730734261061,3.2078,2444.5,2444.0,0.8583]
[1730734261655,3.6171,2444.5,2444.2,0.40933]
[1730734261959,0.40931,2444.4,2444.2,0.40933]
[1730734262657,4.34080883,2444.3,2444.1,0.40935]
[1730734262858,4.34080883,2444.3,2443.8,3.2078]
[1730734262859,3.93147883,2444.3,2443.8,3.2078]
[1730734263051,0.40935,2444.2,2444.1,0.40935]
[1730734263455,3.93147883,2444.3,2444.2,0.40934]
[1730734263956,3.93147883,2444.3,2443.8,4.23131]
[1730734264155,4.34081883,2444.3,2444.1,0.40935]
[1730734264465,3.6171,2444.5,2444.4,0.40931]
[1730734264653,3.6171,2444.5,2444.3,0.40932]
[1730734265160,3.6171,2444.5,2444.4,0.40931]
[1730734265161,3.2078,2444.5,2444.4,0.40931]
[1730734265355,0.4093,2444.5,2444.3,0.40932]
[1730734265662,0.4093,2444.5,2444.2,0.40934]
[1730734265859,0.4093,2444.5,2444.3,0.40932]
[1730734266054,4.77255883,2444.6,2444.4,0.4093]
[1730734266258,0.40929,2444.5,2444.3,0.40932]
[1730734267153,0.40929,2444.5,2444.1,0.4207]
[1730734267355,4.36327883,2444.6,2444.1,0.4207]
[1730734268262,0.40932,2444.4,2444.3,0.40933]
[1730734268857,4.77256883,2444.6,2444.4,0.4093]
[1730734269157,0.40931,2444.5,2444.3,0.40932]
[1730734269559,4.36327883,2444.6,2444.3,0.40932]
[1730734269755,0.40933,2444.3,2444.1,0.40935]
[1730734269962,3.93147883,2444.4,2444.1,0.40935]
[1730734270263,0.4567,2444.2,2443.8,3.2078]
[1730734270466,4.35737883,2444.1,2444.0,0.40936]
[1730734271056,4.76673883,2444.1,2444.0,0.40936]
[1730734271361,4.35737883,2444.1,2444.0,0.40936]
[1730734271561,0.4567,2444.2,2444.1,0.40936]
[1730734272062,3.2078,2444.5,2444.1,4.0912]
[1730734272265,0.8826,2444.8,2444.7,0.40926]
[1730734272575,0.8826,2444.8,2444.6,0.40926]
[1730734272759,0.8826,2444.8,2444.3,1.02333]
[1730734272760,0.8826,2444.8,2444.7,0.40926]
[1730734272955,1.29184,2444.8,2444.7,0.40926]
[1730734273159,0.40927,2444.7,2444.5,0.40928]
[1730734273354,4.34076883,2444.6,2444.5,0.40929]
[1730734273664,3.60285122,2444.6,2444.5,0.40929]
[1730734273861,3.19356122,2444.6,2444.5,0.40929]
[1730734274166,3.60284122,2444.6,2444.5,0.40929]
[1730734274462,4.48542122,2444.8,2444.7,0.40926]
[1730734274673,4.48542122,2444.8,2444.4,1.02326]
[1730734274674,0.4093,2444.5,2444.4,0.40929]
[1730734274853,0.40935,2444.2,2444.1,0.40934]
[1730734275054,1.02324,2444.5,2444.1,0.40934]
[1730734275055,3.19356122,2444.3,2444.1,0.40934]
[1730734275259,0.40935,2444.2,2444.1,0.40934]
[1730734275761,0.40935,2444.2,2443.9,4.0825]
[1730734275762,0.40937,2444.1,2444.0,0.40936]
[1730734276257,1.29445,2444.2,2444.1,0.40936]
[1730734276852,0.8851,2444.2,2444.1,0.40936]
[1730734277458,1.29444,2444.2,2444.1,0.40936]
[1730734277665,0.40937,2444.1,2444.0,0.40936]
[1730734278661,0.8851,2444.2,2443.9,3.2078]
[1730734278860,3.19356122,2444.1,2443.9,3.2078]
[1730734279062,0.40938,2444.0,2443.9,3.61719]
[1730734279270,7.28476122,2444.1,2443.9,3.2078]
[1730734279271,3.19356122,2444.1,2443.9,3.2078]
[1730734279467,41.20938,2444.0,2443.9,3.61718]
[1730734279765,40.8,2444.0,2443.9,3.61718]
[1730734280655,6.40136122,2444.3,2443.9,7.2998]
[1730734280968,0.40933,2444.3,2444.2,0.40934]
[1730734281270,41.63862,2444.4,2444.3,0.40933]
[1730734281662,41.2293,2444.4,2444.3,0.40933]
[1730734281863,40.8,2444.4,2444.3,0.40933]
[1730734282063,41.20931,2444.4,2444.3,0.40933]
[1730734282467,40.8,2444.4,2444.3,0.40933]
[1730734282668,3.19356122,2444.5,2444.1,1.02339]
[1730734282867,3.19356122,2444.5,2444.4,0.40931]
[1730734283068,3.19356122,2444.5,2444.3,0.40931]
[1730734283270,43.99356122,2444.5,2444.4,0.40931]
[1730734283666,0.8741,2444.6,2444.2,1.02336]
[1730734283869,3.61703,2444.9,2444.4,1.02326]
[1730734284067,3.61703,2444.9,2444.8,0.40924]
[1730734284367,0.40925,2444.8,2444.7,0.40925]
[1730734284568,3.2078,2444.9,2444.7,0.55272194]
[1730734284767,3.2078,2444.9,2444.5,0.8894]
[1730734285073,3.61703,2444.9,2444.8,0.40924]
[1730734285265,44.41703,2444.9,2444.8,0.55272524]
[1730734285566,44.41703,2444.9,2444.8,0.96196524]
[1730734286069,44.41703,2444.9,2444.8,0.55272524]
[1730734286774,44.41703,2444.9,2444.8,0.96196524]
[1730734287272,44.41703,2444.9,2444.8,1.84343513]
[1730734287473,44.41703,2444.9,2444.8,1.43419513]
[1730734288177,44.41703,2444.9,2444.8,1.84343513]
[1730734288472,44.41703,2444.9,2444.8,1.43419513]
[1730734288669,40.8,2444.9,2444.8,1.84343513]
[1730734288865,3.2078,2445.5,2444.8,10.00515464]
[1730734289069,0.8725,2445.7,2445.6,0.40911]
[1730734289368,1.2816,2445.7,2445.6,1.43419513]
[1730734289873,5.3704,2445.7,2445.6,1.43419513]
[1730734290071,5.3704,2445.7,2445.6,0.55272524]
[1730734290072,5.8119,2445.7,2445.6,0.55272524]
[1730734290272,5.8119,2445.7,2445.6,1.43521889]
[1730734290771,42.114,2445.7,2445.6,1.43521889]
[1730734291270,40.8,2445.7,2445.6,4.2302779]
[1730734291476,40.8,2445.7,2445.6,4.76431644]
[1730734291772,40.8,2445.7,2445.6,4.76320722]
[1730734292075,40.8,2445.7,2445.6,4.76395147]
[1730734292373,3.60260122,2446.0,2445.8,0.40906]
[1730734292567,6.40136122,2446.2,2445.9,1.43370184]
[1730734292774,0.8788,2446.3,2446.2,0.40901]
[1730734292966,40.8,2446.3,2446.2,1.84263519]
[1730734293172,0.4577,2446.7,2446.2,5.04859064]
[1730734293472,0.4537,2446.8,2446.7,0.40892]
[1730734293675,40.8,2446.8,2446.7,0.95960157]
[1730734294082,41.20891,2446.8,2446.7,0.55068157]
[1730734294373,0.40895,2446.6,2446.4,1.47752582]
[1730734294569,0.40895,2446.6,2446.5,0.54998211]
[1730734294775,3.60253122,2446.5,2446.2,4.68534582]
[1730734294966,3.60253122,2446.5,2446.3,0.40899]
[1730734295368,3.19356122,2446.5,2446.3,0.40899]
[1730734295573,3.60252122,2446.5,2446.3,0.40899]
[1730734296278,3.6527,2446.7,2446.1,0.4305]
[1730734296279,7.25520122,2446.7,2446.4,0.40897]
[1730734296477,40.8,2446.8,2446.2,3.19356122]
[1730734296776,3.63846122,2447.2,2446.6,1.02235]
[1730734297088,3.63846122,2447.2,2446.4,1.02242]
[1730734297089,0.4449,2447.2,2447.1,0.40886]
[1730734297379,0.40886,2447.1,2446.9,0.40888]
[1730734297583,0.4449,2447.2,2446.9,0.40888]
[1730734297773,0.40886,2447.1,2446.9,0.40888]
[1730734298171,0.4449,2447.2,2446.7,0.4646]
[1730734298373,3.19356122,2446.8,2446.6,3.2078]
[1730734298584,3.60248122,2446.8,2446.6,3.61673]
[1730734299079,3.60248122,2446.8,2446.6,3.61674]
[1730734299284,3.60248122,2446.8,2446.6,3.2078]
[1730734299285,0.40892,2446.7,2446.6,3.2078]
[1730734300583,40.8,2446.7,2446.6,3.2078]
[1730734300778,40.8,2446.7,2446.6,3.61674]
[1730734301380,40.8,2446.7,2446.2,1.48711]
[1730734301381,0.40906,2445.9,2445.8,0.18686793]
[1730734301683,0.40906,2445.9,2445.2,2.13615418]
[1730734301684,0.40909,2445.7,2445.2,0.4207]
[1730734301876,0.83598,2445.8,2445.2,0.8836]
[1730734302185,0.83598,2445.8,2445.5,0.40912]
[1730734302186,41.20909,2445.7,2445.5,0.40912]
[1730734302583,40.8,2445.7,2445.4,0.40913]
[1730734302783,0.40911,2445.6,2445.4,0.40913]
[1730734303384,0.40911,2445.6,2445.2,0.8836]
[1730734303385,0.40911,2445.6,2445.3,0.40915]
[1730734303573,41.2091,2445.7,2445.4,0.40913]
[1730734303784,0.40911,2445.6,2445.4,0.40913]
[1730734304279,40.8,2445.7,2445.4,0.40913]
[1730734304583,40.8,2445.7,2445.2,0.8836]
[1730734304584,0.40911,2445.6,2445.3,0.40916]
[1730734304887,0.40911,2445.6,2445.4,0.40914]
[1730734305387,44.0078,2445.7,2445.2,0.8836]
[1730734305684,0.40911,2445.6,2445.4,0.40913]
[1730734307480,0.40913,2445.5,2445.3,0.40915]
[1730734307988,44.0078,2445.7,2445.2,0.8836]
[1730734308283,0.40912,2445.6,2445.4,0.40914]
[1730734308486,44.0078,2445.7,2445.3,0.40915]
[1730734308684,44.0078,2445.7,2445.0,3.2078]
[1730734308877,44.0078,2445.7,2445.2,0.40917]
[1730734308878,0.40915,2445.4,2445.2,0.40917]
[1730734309388,1.02279,2445.6,2445.0,3.2078]
[1730734309779,0.40923,2444.9,2444.8,0.4481]
[1730734309991,4.95004196,2445.3,2444.6,3.61707]
[1730734309992,0.40925,2444.8,2444.6,3.61707]
[1730734310182,1.02299,2445.1,2444.6,3.2078]
[1730734310383,1.02299,2445.1,2444.6,3.61707]
[1730734310384,0.40926,2444.8,2444.6,3.61707]
[1730734310779,0.40926,2444.7,2444.6,3.2078]
[1730734310987,8.15793196,2445.1,2444.5,0.457]
[1730734311182,8.15793196,2445.1,2444.6,0.40927]
[1730734311183,0.40926,2444.7,2444.6,0.40927]
[1730734312387,0.40925,2444.8,2444.7,0.40926]
[1730734312788,0.40926,2444.7,2444.6,0.40927]
[1730734312991,1.43225,2445.0,2444.5,0.86628]
[1730734313195,0.40926,2444.7,2444.6,0.40926]
[1730734313492,8.15793196,2445.1,2444.5,0.457]
[1730734313691,0.40926,2444.7,2444.6,0.40927]
[1730734314194,0.40925,2444.8,2444.7,0.40925]
[1730734314383,8.15793196,2445.1,2444.5,0.457]
[1730734314581,0.40925,2444.8,2444.7,0.40926]
[1730734314783,8.15793196,2445.1,2444.5,0.457]
[1730734314997,0.40927,2444.7,2444.6,0.40927]
[1730734315186,8.15793196,2445.1,2444.5,0.457]
[1730734315389,0.40925,2444.8,2444.7,0.40925]
[1730734315885,0.40926,2444.7,2444.6,0.40927]
[1730734316293,0.40925,2444.8,2444.7,0.40925]
[1730734317096,41.82276,2445.7,2444.8,1.02311]
[1730734317287,3.6569,2445.8,2445.3,0.40915]
[1730734317490,0.40918,2445.2,2445.0,0.40921]
[1730734317691,0.40918,2445.2,2445.0,0.4199]
[1730734317893,0.40925,2444.8,2444.7,0.40925]
[1730734318093,8.01674196,2445.2,2444.7,0.40926]
[1730734318094,0.40924,2444.9,2444.7,0.40926]
[1730734318393,0.40924,2444.8,2444.7,0.40926]
[1730734318597,1.9234,2445.1,2444.6,3.2078]
[1730734318598,0.9004,2445.1,2444.6,3.2078]
[1730734319098,0.9004,2445.1,2444.8,0.40923]
[1730734319099,0.40923,2444.9,2444.8,0.40923]
[1730734320189,0.40925,2444.8,2444.7,0.40925]
[1730734320398,0.9004,2445.1,2444.8,0.40924]
[1730734320596,1.9234,2445.1,2444.7,0.40925]
[1730734320897,0.40928,2444.6,2444.5,0.40928]
[1730734321099,0.40926,2444.7,2444.6,0.40927]
[1730734321292,7.13494196,2444.9,2444.7,0.40925]
[1730734321293,0.40925,2444.8,2444.7,0.40925]
[1730734321896,3.61703,2444.9,2444.8,0.40924]
[1730734322095,0.4442,2445.1,2445.0,0.40921]
[1730734322900,0.85341,2445.1,2445.0,0.40921]
[1730734323197,0.4442,2445.1,2445.0,0.40921]
[1730734324102,0.4442,2445.1,2444.5,4.66451]
[1730734324301,0.85341,2445.1,2444.9,0.40922]
[1730734324895,0.40921,2445.0,2444.9,0.40922]
[1730734325100,0.40923,2444.9,2444.8,0.40924]
[1730734325404,0.8534,2445.1,2445.0,0.40921]
[1730734325901,0.4442,2445.1,2445.0,0.40921]
[1730734326098,0.85339,2445.1,2445.0,0.40921]
[1730734326301,0.4442,2445.1,2444.9,0.40921]
[1730734326495,0.40921,2445.0,2444.9,0.40921]
[1730734326898,0.4442,2445.1,2445.0,0.40921]
[1730734328205,0.85339,2445.1,2445.0,0.40921]
[1730734328404,0.85339,2445.1,2444.7,1.46525]
[1730734328702,0.85339,2445.1,2444.4,0.4199]
[1730734328703,3.2078,2445.0,2444.4,0.4199]
[1730734328899,4.083,2445.0,2444.5,1.02322]
[1730734329101,0.40923,2444.9,2444.8,0.40923]
[1730734329501,4.083,2445.0,2444.7,0.40924]
[1730734329502,0.40924,2444.8,2444.7,0.40924]
[1730734329702,4.083,2445.0,2444.4,1.44317]
[1730734329901,4.083,2445.0,2444.8,0.40923]
[1730734330107,0.40922,2444.9,2444.8,0.40923]
[1730734330602,4.49222,2445.0,2444.8,0.40923]
[1730734330799,0.40922,2444.9,2444.8,0.40923]
[1730734330994,0.40923,2444.9,2444.6,0.40927]
[1730734331205,3.2078,2445.0,2444.9,0.40922]
[1730734331904,10.61281309,2446.9,2445.6,0.40911]
[1730734331905,44.0078,2445.7,2445.6,0.40911]
[1730734332098,4.5526,2446.2,2445.6,0.4091]
[1730734332302,4.5526,2446.2,2445.5,3.19271186]
[1730734332303,0.40908,2445.8,2445.5,3.65491186]
[1730734332498,0.40907,2445.9,2445.7,0.40908]
[1730734332700,5.57513,2446.2,2445.5,0.4622]
[1730734332701,4.5526,2446.2,2445.5,0.4622]
[1730734332900,4.5526,2446.2,2445.6,1.02277]
[1730734333096,4.5526,2446.2,2445.8,0.40907]
[1730734333097,0.40905,2446.0,2445.8,0.40907]
[1730734333302,40.8,2446.1,2445.5,0.4622]
[1730734333303,43.99271186,2446.1,2445.5,0.4622]
[1730734333503,0.40908,2445.8,2445.5,0.4622]
[1730734333705,40.8,2446.1,2445.6,0.4091]
[1730734333706,0.40909,2445.7,2445.6,0.4091]
[1730734334007,0.436,2445.7,2445.2,0.4402]
[1730734334305,0.40916,2445.3,2445.2,0.40917]
[1730734334506,3.2078,2445.5,2444.9,1.02307]
[1730734334807,3.2078,2445.5,2445.4,0.40914]
[1730734334808,3.61692,2445.5,2445.4,0.40914]
[1730734335010,0.40915,2445.4,2445.2,0.40916]
[1730734335306,1.26912,2445.6,2445.4,0.40913]
[1730734335510,0.40912,2445.5,2445.4,0.40913]
[1730734335904,0.40912,2445.5,2445.1,4.23078]
[1730734335905,0.86,2445.6,2445.1,4.23078]
[1730734336109,0.86,2445.6,2445.5,0.40912]
[1730734336310,0.86,2445.6,2445.1,4.23078]
[1730734336311,1.26911,2445.6,2445.1,4.23078]
[1730734336507,0.86,2445.6,2445.4,0.40913]
[1730734336810,0.86,2445.6,2445.3,0.40915]
[1730734336811,0.40914,2445.5,2445.3,0.40915]
[1730734337011,0.40914,2445.4,2445.3,0.40915]
[1730734337402,0.40913,2445.5,2445.3,0.40915]
[1730734337606,0.40914,2445.4,2445.3,0.40915]
[1730734338106,0.86,2445.6,2445.3,0.40915]
[1730734338307,0.40913,2445.5,2445.3,0.40915]
[1730734338703,0.86,2445.6,2444.9,1.02304]
[1730734338907,0.436,2445.7,2445.6,0.40911]
[1730734339106,0.436,2445.7,2445.5,0.40911]
[1730734339304,0.436,2445.7,2445.6,0.4091]
[1730734339810,4.5248,2445.7,2445.6,0.4091]
[1730734340108,4.5248,2445.7,2445.3,3.61695]
[1730734340109,0.40914,2445.4,2445.3,3.61695]
[1730734340305,0.83411,2445.6,2445.4,0.40912]
[1730734340513,0.83411,2445.6,2445.5,0.40912]
[1730734340514,0.425,2445.6,2445.5,0.40912]
[1730734340708,0.84509,2445.7,2445.6,0.4091]
[1730734341108,4.93389,2445.7,2445.6,0.4091]
[1730734341612,4.93389,2445.7,2445.3,3.2078]
[1730734341613,7.7326,2445.7,2445.4,0.40914]
[1730734341808,4.0529,2445.7,2445.5,0.40912]
[1730734342506,0.8451,2445.7,2445.5,0.40912]
[1730734343207,0.8451,2445.7,2445.5,0.40911]
[1730734343615,0.436,2445.7,2445.6,0.4091]
[1730734343809,0.436,2445.7,2445.3,0.4251]
[1730734344015,0.40911,2445.6,2445.5,0.40912]
[1730734344713,0.40914,2445.4,2445.3,0.40915]
[1730734345314,0.40914,2445.4,2445.0,0.4471]
[1730734345512,0.40914,2445.4,2445.3,0.40916]
[1730734345917,8.59533639,2445.7,2445.0,0.4471]
[1730734345918,7.57259639,2445.7,2445.0,0.4471]
[1730734346219,0.40914,2445.4,2445.3,0.40915]
[1730734347116,0.40913,2445.5,2445.4,0.40913]
[1730734347317,0.40914,2445.4,2445.3,0.40915]
[1730734347619,0.40914,2445.4,2445.3,0.96793913]
[1730734347817,7.57259639,2445.7,2445.3,0.55878913]
[1730734348010,7.57259639,2445.7,2445.4,0.55878913]
[1730734348210,0.40913,2445.5,2445.2,1.06481885]
[1730734348517,7.57259639,2445.7,2445.3,0.55878621]
[1730734348713,7.57259639,2445.7,2445.4,0.55878621]
[1730734348910,7.57259639,2445.7,2445.3,0.40915]
[1730734348911,0.40914,2445.4,2445.3,0.40915]
[1730734349113,7.13659639,2445.4,2445.1,1.59722827]
[1730734349419,7.13659639,2445.4,2444.8,2.5046343]
[1730734349420,0.40922,2444.9,2444.8,2.5046343]
[1730734349726,0.40922,2444.9,2444.4,0.4093]
[1730734349727,0.40927,2444.6,2444.4,0.4093]
[1730734349919,48.95966639,2444.9,2444.3,0.454]
[1730734350117,0.40929,2444.5,2444.3,0.86331]
[1730734350318,3.2078,2444.6,2444.3,0.454]
[1730734350523,3.61708,2444.6,2444.4,0.40931]
[1730734350727,0.40929,2444.5,2444.3,0.86331]
[1730734351025,3.2078,2444.6,2444.5,0.40929]
[1730734352319,3.2078,2444.6,2444.5,0.40926]
[1730734352718,0.4092,2444.9,2444.7,0.40922]
[1730734352922,3.2078,2445.1,2444.8,0.8712]
[1730734353128,3.2078,2445.1,2444.9,0.40919]
[1730734353129,0.40919,2445.0,2444.9,0.40919]
[1730734353426,41.20919,2445.0,2444.8,1.2804]
[1730734353622,40.8,2445.0,2444.9,0.40919]
[1730734354018,0.40915,2445.2,2444.8,0.8712]
[1730734354223,0.40915,2445.2,2445.0,0.40917]
[1730734354522,41.20913,2445.3,2445.1,0.40914]
[1730734354719,40.8,2445.3,2444.8,5.10202]
[1730734354927,0.4091,2445.5,2445.3,0.40912]
[1730734355127,0.4091,2445.5,2445.4,0.4579]
[1730734355328,40.8,2445.6,2445.4,0.4579]
[1730734355529,40.8,2445.6,2445.5,0.40909]
[1730734355732,7.54562639,2445.9,2445.7,0.40905]
[1730734355936,11.85096704,2446.2,2445.7,0.40905]
[1730734356134,0.40904,2445.9,2445.7,0.40905]
[1730734356433,40.8,2445.8,2445.7,0.40906]
[1730734358838,41.20904,2445.8,2445.7,0.40906]
[1730734359033,40.8,2445.8,2445.7,0.40906]
[1730734360243,8.71060834,2446.2,2445.8,0.40903]
[1730734360244,0.40901,2446.0,2445.8,0.40903]
[1730734360433,0.40901,2446.0,2445.9,0.40903]
[1730734360750,40.8,2446.0,2445.9,0.40903]
[1730734361744,41.20901,2446.0,2445.9,0.40903]
[1730734361937,0.40903,2445.9,2445.8,0.84854]
[1730734362242,40.8,2446.0,2445.8,1.41205608]
[1730734362436,40.8,2446.0,2445.8,0.84854]
[1730734362641,0.40903,2445.9,2445.8,0.4395]
[1730734362847,0.40903,2445.9,2445.8,1.00293473]
[1730734363043,0.40903,2445.9,2445.8,1.41197473]
[1730734363344,41.20902,2446.0,2445.9,0.40903]
[1730734363731,41.20902,2446.0,2445.8,0.84853]
[1730734363931,0.40903,2445.9,2445.8,0.84853]
[1730734364350,41.20902,2446.0,2445.9,0.40903]
[1730734364543,0.40903,2445.9,2445.8,0.84853]
[1730734364746,41.20902,2446.0,2445.9,0.40903]
[1730734364935,40.8,2446.0,2445.8,0.4395]
[1730734365338,40.8,2446.0,2445.9,0.40903]
[1730734365541,40.8,2446.0,2445.9,0.83313]
[1730734365542,41.20901,2446.0,2445.9,0.83313]
[1730734365738,40.8,2446.0,2445.9,0.83313]
[1730734366447,41.20901,2446.0,2445.9,0.83313]
[1730734366642,41.20901,2446.0,2445.9,1.25593]
[1730734366845,41.20901,2446.0,2445.9,0.4228]
[1730734367040,41.20901,2446.0,2445.9,0.83183]
[1730734367443,41.20901,2446.0,2445.9,0.4228]
[1730734367640,40.8,2446.0,2445.6,0.4241]
[1730734367947,40.8,2446.0,2445.6,1.29847]
[1730734367948,0.40906,2445.7,2445.6,1.29847]
[1730734368137,0.40906,2445.7,2445.6,0.87437]
[1730734369046,3.2078,2445.9,2445.7,0.40906]
[1730734369047,0.40905,2445.8,2445.7,0.40906]
[1730734369940,3.2078,2445.9,2445.6,0.4653]
[1730734370144,0.40906,2445.7,2445.6,0.4653]
[1730734371242,0.40912,2445.4,2445.2,0.85373]
[1730734371437,0.4554,2445.6,2445.2,0.8725]